[Event "Championnat du monde jeunes U10"]
[Date "2024.11.24"]
[White "Kolodziejczyk, Boris"]
[Black "Azimov, Yasin"]
[WhiteElo "2115"]
[BlackElo "1759"]
[Round "9.8"]
[Result "1-0"]
[TimeControl "5400+30"]

1. e4 {[%clk 1:30:58]} 1... c5 {[%clk 1:30:46]} 2. Nf3 {[%clk 1:31:23]} 2... e6
{[%clk 1:31:00]} 3. b3 {[%clk 1:31:44]} 3... a6 {[%clk 1:30:54]} 4. Bb2 {[%clk
1:31:46]} 4... Nc6 {[%clk 1:31:05]} 5. c4 {[%clk 1:31:47]} 5... Qc7 {[%clk
1:30:57]} 6. Nc3 {[%clk 1:30:25]} 6... Nf6 {[%clk 1:30:37]} 7. Be2 {[%clk
1:29:36]} 7... Nd4 {[%clk 1:30:06]} 8. h3 {[%clk 1:27:57]} 8... Be7 {[%clk
1:26:15]} 9. O-O {[%clk 1:26:59]} 9... O-O {[%clk 1:25:19]} 10. d3 {[%clk
1:25:38]} 10... d6 {[%clk 1:19:20]} 11. Nxd4 {[%clk 1:24:48]} 11... cxd4 {[%clk
1:19:31]} 12. Nb1 {[%clk 1:25:06]} 12... e5 {[%clk 1:17:26]} 13. Nd2 {[%clk
1:23:40]} 13... Bd7 {[%clk 1:03:08]} 14. f4 {[%clk 1:22:09]} 14... Bc6 {[%clk
0:58:12]} 15. Qe1 {[%clk 1:16:08]} 15... Nd7 {[%clk 0:50:43]} 16. Qg3 {[%clk
1:15:54]} 16... Qb6 {[%clk 0:47:15]} 17. Kh1 {[%clk 1:14:58]} 17... Bf6 {[%clk
0:40:45]} 18. f5 {[%clk 1:08:04]} 18... Nc5 {[%clk 0:34:49]} 19. Nf3 {[%clk
1:02:39]} 19... Rfd8 {[%clk 0:29:05]} 20. Nh2 {[%clk 1:00:44]} 20... Qc7 {[%clk
0:21:46]} 21. Ng4 {[%clk 0:59:28]} 21... Qe7 {[%clk 0:20:04]} 22. Bc1 {[%clk
0:57:05]} 22... Kh8 {[%clk 0:19:09]} 23. Nxf6 {[%clk 0:55:51]} 23... gxf6 {[%clk
0:19:31]} 24. b4 {[%clk 0:51:53]} 24... Na4 {[%clk 0:18:20]} 25. Bd2 {[%clk
0:50:25]} 25... Rg8 {[%clk 0:16:31]} 26. Qh4 {[%clk 0:49:43]} 26... b5 {[%clk
0:15:15]} 27. Rac1 {[%clk 0:48:59]} 27... Rac8 {[%clk 0:12:26]} 28. cxb5 {[%clk
0:38:27]} 28... Bxb5 {[%clk 0:11:30]} 29. Rxc8 {[%clk 0:36:19]} 29... Rxc8
{[%clk 0:11:57]} 30. Rc1 {[%clk 0:36:02]} 30... Nc3 {[%clk 0:11:40]} 31. Bf1
{[%clk 0:35:34]} 31... d5 {[%clk 0:06:50]} 32. exd5 {[%clk 0:34:17]} 32... Qd6
{[%clk 0:05:28]} 33. Qh6 {[%clk 0:31:57]} 33... Bd7 {[%clk 0:04:41]} 34. g4
{[%clk 0:26:18]} 34... Nxd5 {[%clk 0:03:15]} 35. Rxc8+ {[%clk 0:26:40]} 35...
Bxc8 {[%clk 0:03:43]} 36. Bg2 {[%clk 0:26:05]} 36... Bb7 {[%clk 0:01:33]} 37.
Kg1 {[%clk 0:25:38]} 37... Bc6 {[%clk 0:00:37]} 38. Bxd5 {[%clk 0:25:31]} 38...
Qxd5 {[%clk 0:00:54]} 39. Qf8# {[%clk 0:25:56]} 1-0

[Variant "Standard"]
[Site "Europe Echecs"]

[Event "Championnat du monde jeunes U10"]
[Date "2024.11.24"]
[White "Ilko-Toth, Andras"]
[Black "Tulegen, Ramazan"]
[WhiteElo "2115"]
[BlackElo "1818"]
[Round "9.9"]
[Result "0-1"]
[TimeControl "5400+30"]

1. d4 {[%clk 1:30:57]} 1... Nf6 {[%clk 1:30:50]} 2. Nf3 {[%clk 1:31:19]} 2... c5
{[%clk 1:31:11]} 3. d5 {[%clk 1:30:20]} 3... g6 {[%clk 1:31:28]} 4. Nc3 {[%clk
1:29:08]} 4... Bg7 {[%clk 1:31:45]} 5. e4 {[%clk 1:29:04]} 5... d6 {[%clk
1:32:09]} 6. Bc4 {[%clk 1:27:27]} 6... O-O {[%clk 1:32:07]} 7. h3 {[%clk
1:25:05]} 7... b5 {[%clk 1:30:15]} 8. Bxb5 {[%clk 1:22:57]} 8... Nxe4 {[%clk
1:30:27]} 9. Nxe4 {[%clk 1:20:59]} 9... Qa5+ {[%clk 1:30:49]} 10. Nc3 {[%clk
1:21:22]} 10... Bxc3+ {[%clk 1:31:11]} 11. bxc3 {[%clk 1:21:48]} 11... Qxb5
{[%clk 1:31:30]} 12. Qd3 {[%clk 1:13:06]} 12... Ba6 {[%clk 1:30:08]} 13. Qxb5
{[%clk 1:08:30]} 13... Bxb5 {[%clk 1:30:27]} 14. Bh6 {[%clk 1:01:41]} 14... Re8
{[%clk 1:30:00]} 15. Nd2 {[%clk 1:00:10]} 15... Nd7 {[%clk 1:27:02]} 16. a4
{[%clk 0:58:25]} 16... Ba6 {[%clk 1:27:15]} 17. a5 {[%clk 0:57:49]} 17... Rab8
{[%clk 1:21:08]} 18. Bf4 {[%clk 0:40:35]} 18... Nf6 {[%clk 1:14:35]} 19. c4
{[%clk 0:39:03]} 19... e6 {[%clk 1:11:33]} 20. O-O-O {[%clk 0:34:03]} 20... e5
{[%clk 1:09:05]} 21. Bg5 {[%clk 0:32:27]} 21... Kg7 {[%clk 1:09:06]} 22. c3
{[%clk 0:28:51]} 22... h6 {[%clk 1:08:07]} 23. Be3 {[%clk 0:27:07]} 23... Bc8
{[%clk 1:06:25]} 24. g4 {[%clk 0:25:26]} 24... g5 {[%clk 1:04:25]} 25. f3 {[%clk
0:23:37]} 25... Kg6 {[%clk 0:56:06]} 26. Kc2 {[%clk 0:16:58]} 26... Bd7 {[%clk
0:54:21]} 27. Ra1 {[%clk 0:16:17]} 27... h5 {[%clk 0:47:33]} 28. Rhb1 {[%clk
0:11:31]} 28... hxg4 {[%clk 0:46:45]} 29. hxg4 {[%clk 0:11:51]} 29... Rxb1
{[%clk 0:46:12]} 30. Rxb1 {[%clk 0:11:43]} 30... e4 {[%clk 0:46:25]} 31. Nxe4
{[%clk 0:10:39]} 31... Nxe4 {[%clk 0:46:36]} 32. fxe4 {[%clk 0:11:03]} 32...
Rxe4 {[%clk 0:46:44]} 33. Rb7 {[%clk 0:08:54]} 33... Bxg4 {[%clk 0:45:46]} 34.
Kd2 {[%clk 0:08:36]} 34... f5 {[%clk 0:44:39]} 35. Rxa7 {[%clk 0:08:13]} 35...
f4 {[%clk 0:44:58]} 36. Bg1 {[%clk 0:08:34]} 36... Re2+ {[%clk 0:45:23]} 37. Kc1
{[%clk 0:07:22]} 37... Re1+ {[%clk 0:45:31]} 38. Kb2 {[%clk 0:07:45]} 38... Rxg1
{[%clk 0:44:35]} 39. a6 {[%clk 0:08:06]} 39... f3 {[%clk 0:43:44]} 40. Rg7+
{[%clk 0:06:23]} 40... Kxg7 {[%clk 0:44:08]} 41. a7 {[%clk 0:06:47]} 41... f2
{[%clk 0:44:29]} 42. a8=Q {[%clk 0:07:03]} 42... f1=Q {[%clk 0:44:51]} 43. Qb7+
{[%clk 0:07:23]} 43... Qf7 {[%clk 0:45:09]} 44. Qxf7+ {[%clk 0:07:42]} 44...
Kxf7 {[%clk 0:45:34]} 45. Kb3 {[%clk 0:08:07]} 45... Rg2 {[%clk 0:45:51]} 46.
Ka4 {[%clk 0:08:32]} 46... Rb2 {[%clk 0:46:13]} 47. Ka3 {[%clk 0:08:46]} 47...
Rb6 {[%clk 0:46:37]} 48. Ka4 {[%clk 0:09:11]} 48... Bd7+ {[%clk 0:46:59]} 49.
Ka5 {[%clk 0:09:32]} 49... Rb1 {[%clk 0:47:23]} 50. Ka6 {[%clk 0:09:57]} 50...
g4 {[%clk 0:47:47]} 51. Ka5 {[%clk 0:10:22]} 51... g3 {[%clk 0:48:11]} 52. Ka6
{[%clk 0:10:47]} 52... g2 {[%clk 0:48:35]} 53. Ka5 {[%clk 0:11:13]} 53... g1=Q
{[%clk 0:48:55]} 54. Ka6 {[%clk 0:11:38]} 54... Qc1 {[%clk 0:49:13]} 55. Ka5
{[%clk 0:11:58]} 55... Qa3# {[%clk 0:49:37]} 0-1

[Variant "Standard"]
[Site "Europe Echecs"]

[Event "Championnat du monde jeunes U10"]
[Date "2024.11.24"]
[White "Zhang, Junyi"]
[Black "Kadyr, Aldiyar"]
[WhiteElo "2061"]
[BlackElo "1759"]
[Round "9.10"]
[Result "1-0"]
[TimeControl "5400+30"]

1. e4 {[%clk 1:31:00]} 1... e6 {[%clk 1:30:27]} 2. d4 {[%clk 1:31:29]} 2... d5
{[%clk 1:30:35]} 3. e5 {[%clk 1:31:58]} 3... c5 4. c3 Nc6 {[%clk 1:30:40]} 5.
Nf3 {[%clk 1:32:57]} 5... Qb6 {[%clk 1:30:44]} 6. a3 {[%clk 1:33:25]} 6... f6
{[%clk 1:30:27]} 7. Bd3 {[%clk 1:32:18]} 7... fxe5 {[%clk 1:30:19]} 8. Nxe5
{[%clk 1:30:22]} 8... Nf6 {[%clk 1:27:22]} 9. O-O {[%clk 1:23:10]} 9... Bd6
{[%clk 1:25:55]} 10. Ng4 {[%clk 1:13:56]} 10... cxd4 {[%clk 1:09:29]} 11. Nxf6+
{[%clk 1:11:29]} 11... gxf6 {[%clk 1:09:53]} 12. Qh5+ {[%clk 1:11:48]} 12... Kd8
{[%clk 1:10:06]} 13. Qh6 {[%clk 0:59:52]} 13... Bd7 {[%clk 1:05:38]} 14. Rd1
{[%clk 0:48:47]} 14... Be5 {[%clk 0:58:30]} 15. cxd4 {[%clk 0:40:48]} 15... Bxd4
{[%clk 0:58:40]} 16. Nc3 {[%clk 0:40:36]} 16... a6 {[%clk 0:48:57]} 17. Kh1
{[%clk 0:31:46]} 17... Ne7 {[%clk 0:43:24]} 18. Be3 {[%clk 0:29:49]} 18... Bxe3
{[%clk 0:33:42]} 19. fxe3 {[%clk 0:30:10]} 19... f5 {[%clk 0:25:35]} 20. Qf6
{[%clk 0:24:45]} 20... Re8 {[%clk 0:22:24]} 21. Nxd5 {[%clk 0:23:00]} 21... Qc5
{[%clk 0:22:36]} 22. Nf4 {[%clk 0:18:35]} 22... Qxe3 {[%clk 0:18:56]} 23. Bxf5
{[%clk 0:16:18]} 23... exf5 {[%clk 0:19:05]} 24. Qd6 {[%clk 0:16:24]} 24... Nd5
{[%clk 0:17:11]} 25. Nxd5 {[%clk 0:15:39]} 25... Qe5 {[%clk 0:16:46]} 26. Qxe5
{[%clk 0:14:41]} 26... Rxe5 {[%clk 0:17:00]} 27. Nb6 {[%clk 0:15:08]} 27... Ra7
{[%clk 0:16:34]} 28. Rxd7+ {[%clk 0:14:52]} 28... Ke8 {[%clk 0:16:54]} 29. Rxh7
{[%clk 0:13:56]} 29... a5 {[%clk 0:17:01]} 30. Rc1 {[%clk 0:14:17]} 30... Kf8
{[%clk 0:16:49]} 31. Rc8+ {[%clk 0:14:35]} 31... Re8 {[%clk 0:16:53]} 32. Nd7+
{[%clk 0:14:54]} 32... Kg8 {[%clk 0:17:06]} 33. Nf6+ {[%clk 0:15:19]} 33... Kf8
{[%clk 0:17:06]} 34. Rxe8# 1-0

[Variant "Standard"]
[Site "Europe Echecs"]

[Event "Championnat du monde jeunes U10"]
[Date "2024.11.24"]
[White "Filipovs, Sergejs"]
[Black "Li, Weilong"]
[WhiteElo "2012"]
[BlackElo "1735"]
[Round "9.11"]
[Result "1-0"]
[TimeControl "5400+30"]

1. e4 {[%clk 1:30:58]} 1... c5 {[%clk 1:30:58]} 2. Nf3 {[%clk 1:31:21]} 2... e6
{[%clk 1:31:25]} 3. d4 {[%clk 1:31:45]} 3... cxd4 {[%clk 1:31:52]} 4. Nxd4
{[%clk 1:32:09]} 4... a6 {[%clk 1:32:19]} 5. c4 {[%clk 1:32:32]} 5... Nf6 {[%clk
1:32:45]} 6. Nc3 {[%clk 1:32:55]} 6... Qc7 {[%clk 1:33:11]} 7. a3 {[%clk
1:33:04]} 7... b6 {[%clk 1:33:37]} 8. Be3 {[%clk 1:32:49]} 8... Bb7 {[%clk
1:34:01]} 9. f3 {[%clk 1:33:11]} 9... Be7 {[%clk 1:34:27]} 10. Be2 {[%clk
1:33:10]} 10... d6 {[%clk 1:34:40]} 11. O-O {[%clk 1:33:23]} 11... O-O {[%clk
1:35:01]} 12. Rc1 {[%clk 1:33:44]} 12... Nbd7 {[%clk 1:35:22]} 13. Qd2 {[%clk
1:33:41]} 13... Rac8 {[%clk 1:35:41]} 14. Rfd1 {[%clk 1:33:44]} 14... Qb8 {[%clk
1:35:44]} 15. b4 {[%clk 1:32:20]} 15... Rfe8 {[%clk 1:33:07]} 16. Bf1 {[%clk
1:32:14]} 16... h6 {[%clk 1:32:40]} 17. Qf2 {[%clk 1:32:19]} 17... Bd8 {[%clk
1:28:20]} 18. Na4 {[%clk 1:30:21]} 18... Bc7 {[%clk 1:27:39]} 19. Kh1 {[%clk
1:30:34]} 19... Ba8 {[%clk 0:58:41]} 20. Nb3 {[%clk 1:27:48]} 20... Rcd8 {[%clk
0:55:47]} 21. Qg1 {[%clk 1:20:32]} 21... d5 {[%clk 0:46:21]} 22. exd5 {[%clk
1:11:25]} 22... exd5 {[%clk 0:45:16]} 23. cxd5 {[%clk 0:59:53]} 23... Bxd5
{[%clk 0:40:14]} 24. Nd4 {[%clk 0:55:06]} 24... Bxh2 {[%clk 0:35:00]} 25. Qxh2
{[%clk 0:55:21]} 25... Qxh2+ {[%clk 0:35:12]} 26. Kxh2 {[%clk 0:55:47]} 26...
Rxe3 {[%clk 0:35:37]} 27. Nc3 {[%clk 0:55:26]} 27... Bb7 {[%clk 0:32:22]} 28.
Nf5 {[%clk 0:55:30]} 28... Re5 {[%clk 0:30:15]} 29. Nd6 {[%clk 0:55:28]} 29...
Rb8 {[%clk 0:30:36]} 30. Bc4 {[%clk 0:50:02]} 30... Re7 {[%clk 0:29:17]} 31. Re1
{[%clk 0:49:30]} 31... Kf8 {[%clk 0:19:04]} 32. Rxe7 {[%clk 0:49:17]} 32... Kxe7
{[%clk 0:19:30]} 33. Nxf7 {[%clk 0:49:22]} 33... Rc8 {[%clk 0:19:42]} 34. Re1+
{[%clk 0:48:40]} 34... Kf8 {[%clk 0:20:07]} 35. Nd6 {[%clk 0:48:58]} 35... Rc6
{[%clk 0:20:29]} 36. Re6 {[%clk 0:39:27]} 36... Bc8 {[%clk 0:09:13]} 37. Nce4
{[%clk 0:36:56]} 37... Nb8 {[%clk 0:06:53]} 38. Nxc8 {[%clk 0:36:51]} 38... Rxc8
{[%clk 0:07:20]} 39. Nxf6 {[%clk 0:36:39]} 39... gxf6 {[%clk 0:02:47]} 40. Rxf6+
{[%clk 0:37:01]} 40... Ke7 {[%clk 0:03:14]} 41. Rxb6 {[%clk 0:37:11]} 41... Rxc4
{[%clk 0:03:41]} 42. Rxb8 {[%clk 0:37:32]} 42... Rc6 {[%clk 0:03:59]} 43. a4
{[%clk 0:37:36]} 43... Kf6 {[%clk 0:04:26]} 44. a5 {[%clk 0:37:28]} 44... Ke6
{[%clk 0:04:33]} 45. Rb6 {[%clk 0:37:40]} 45... Kd5 {[%clk 0:00:36]} 46. Rxc6
{[%clk 0:38:04]} 46... Kxc6 {[%clk 0:00:55]} 47. f4 {[%clk 0:38:29]} 47... Kd6
{[%clk 0:00:47]} 48. g4 {[%clk 0:38:48]} 48... Kd7 {[%clk 0:00:43]} 49. g5
{[%clk 0:39:06]} 49... hxg5 {[%clk 0:00:34]} 50. fxg5 {[%clk 0:39:31]} 50... Ke7
{[%clk 0:00:32]} 51. b5 {[%clk 0:39:51]} 51... axb5 {[%clk 0:00:31]} 52. a6
{[%clk 0:40:18]} 52... b4 {[%clk 0:00:58]} 53. a7 {[%clk 0:40:40]} 53... b3
{[%clk 0:01:21]} 54. a8=Q {[%clk 0:41:04]} 54... b2 {[%clk 0:01:50]} 55. Qb7+
{[%clk 0:41:26]} 55... Kf8 {[%clk 0:02:17]} 56. g6 {[%clk 0:41:43]} 56... b1=Q
{[%clk 0:02:41]} 57. Qf7# {[%clk 0:42:05]} 1-0

[Variant "Standard"]
[Site "Europe Echecs"]

[Event "Championnat du monde jeunes U10"]
[Date "2024.11.24"]
[White "Bolashakov, Nurali"]
[Black "Seo, Juwon"]
[WhiteElo "2005"]
[BlackElo "1721"]
[Round "9.12"]
[Result "1-0"]
[TimeControl "5400+30"]

1. e4 {[%clk 1:30:59]} 1... c5 {[%clk 1:30:38]} 2. Nc3 {[%clk 1:30:54]} 2... Nc6
{[%clk 1:31:00]} 3. Bb5 {[%clk 1:30:41]} 3... Nd4 {[%clk 1:26:08]} 4. f4 {[%clk
1:30:34]} 4... g6 {[%clk 1:25:48]} 5. Nf3 {[%clk 1:30:58]} 5... Bg7 {[%clk
1:26:08]} 6. Nxd4 {[%clk 1:31:19]} 6... cxd4 {[%clk 1:26:07]} 7. Ne2 {[%clk
1:31:38]} 7... a6 {[%clk 1:24:54]} 8. Ba4 {[%clk 1:31:47]} 8... b5 {[%clk
1:17:52]} 9. Bb3 {[%clk 1:32:10]} 9... Bb7 {[%clk 1:15:14]} 10. d3 {[%clk
1:32:20]} 10... e6 {[%clk 1:15:14]} 11. O-O {[%clk 1:31:08]} 11... Ne7 {[%clk
1:12:39]} 12. f5 {[%clk 1:17:41]} 12... Nc6 {[%clk 0:57:37]} 13. Ng3 {[%clk
1:14:57]} 13... O-O {[%clk 0:39:26]} 14. a3 {[%clk 1:06:22]} 14... Rc8 {[%clk
0:35:11]} 15. Bf4 {[%clk 1:05:01]} 15... d5 {[%clk 0:26:51]} 16. Qg4 {[%clk
0:58:39]} 16... Qd7 {[%clk 0:19:50]} 17. fxg6 {[%clk 0:57:22]} 17... hxg6 {[%clk
0:11:52]} 18. exd5 {[%clk 0:57:39]} 18... Nd8 {[%clk 0:08:25]} 19. dxe6 {[%clk
0:57:37]} 19... Nxe6 {[%clk 0:07:08]} 20. Ne4 {[%clk 0:56:49]} 20... Bxe4 {[%clk
0:04:02]} 21. dxe4 {[%clk 0:57:16]} 21... a5 {[%clk 0:01:21]} 22. a4 {[%clk
0:56:22]} 22... b4 {[%clk 0:01:36]} 23. h4 {[%clk 0:54:57]} 23... Qc6 {[%clk
0:00:42]} 24. h5 {[%clk 0:53:41]} 24... Nxf4 {[%clk 0:00:38]} 25. Rxf4 {[%clk
0:53:57]} 25... Be5 {[%clk 0:00:37]} 26. Rf5 {[%clk 0:54:09]} 26... Bg7 {[%clk
0:00:40]} 27. hxg6 {[%clk 0:54:32]} 27... Qb6 {[%clk 0:00:37]} 28. Qh5 {[%clk
0:54:13]} 28... d3+ {[%clk 0:00:54]} 29. Kh1 {[%clk 0:54:42]} 29... Rfd8 {[%clk
0:00:47]} 30. Qh7+ {[%clk 0:55:01]} 30... Kf8 {[%clk 0:01:15]} 31. Rxf7+ {[%clk
0:55:24]} 31... Ke8 {[%clk 0:01:41]} 32. Qg8+ {[%clk 0:55:45]} 32... Bf8 {[%clk
0:02:05]} 33. Qxf8# {[%clk 0:56:10]} 1-0

[Variant "Standard"]
[Site "Europe Echecs"]

[Event "Championnat du monde jeunes U10"]
[Date "2024.11.24"]
[White "Qian, Qipeng"]
[Black "Ling, Chenxuan"]
[WhiteElo "1641"]
[BlackElo "1967"]
[Round "9.13"]
[Result "0-1"]
[TimeControl "5400+30"]

1. d4 {[%clk 1:30:31]} 1... Nf6 {[%clk 1:30:36]} 2. c4 {[%clk 1:30:45]} 2... e6
{[%clk 1:31:00]} 3. Nf3 {[%clk 1:31:03]} 3... d5 {[%clk 1:31:26]} 4. Nc3 {[%clk
1:31:25]} 4... Bb4 {[%clk 1:31:50]} 5. Bg5 {[%clk 1:31:46]} 5... dxc4 {[%clk
1:32:08]} 6. e4 {[%clk 1:31:23]} 6... b5 {[%clk 1:32:33]} 7. e5 {[%clk 1:31:50]}
7... h6 {[%clk 1:33:00]} 8. exf6 {[%clk 1:32:17]} 8... hxg5 {[%clk 1:33:22]} 9.
fxg7 {[%clk 1:32:46]} 9... Rg8 {[%clk 1:33:36]} 10. a4 {[%clk 1:31:50]} 10... c6
{[%clk 1:28:48]} 11. g3 {[%clk 1:29:01]} 11... g4 {[%clk 1:13:19]} 12. Ne5
{[%clk 1:29:15]} 12... Qd5 {[%clk 1:13:13]} 13. Rg1 {[%clk 1:29:23]} 13... c5
{[%clk 1:06:11]} 14. Bg2 {[%clk 1:19:32]} 14... Qxd4 {[%clk 1:06:25]} 15. Qxd4
{[%clk 1:19:58]} 15... cxd4 {[%clk 1:06:49]} 16. axb5 {[%clk 1:18:55]} 16...
dxc3 {[%clk 1:06:22]} 17. O-O-O {[%clk 1:19:23]} 17... Nd7 {[%clk 0:58:53]} 18.
Nxd7 {[%clk 1:09:45]} 18... Bxd7 {[%clk 0:59:19]} 19. Bxa8 {[%clk 1:10:01]}
19... Bxb5 {[%clk 0:58:10]} 20. Rd4 {[%clk 1:09:33]} 20... Bc5 {[%clk 0:48:22]}
21. Bc6+ {[%clk 1:08:00]} 21... Bxc6 {[%clk 0:47:28]} 22. Rxc4 {[%clk 1:08:28]}
22... Bxf2 {[%clk 0:47:25]} 23. Rd1 {[%clk 1:07:46]} 23... Bb7 {[%clk 0:42:56]}
24. Rxg4 {[%clk 1:00:43]} 24... f5 {[%clk 0:41:43]} 25. Rb4 {[%clk 0:57:11]}
25... cxb2+ {[%clk 0:41:18]} 26. Rxb2 {[%clk 0:56:40]} 26... Bb6 {[%clk
0:40:00]} 27. Rd6 {[%clk 0:55:59]} 27... Bd5 {[%clk 0:38:32]} 28. Re2 {[%clk
0:56:16]} 28... Kf7 {[%clk 0:38:48]} 29. Rd7+ {[%clk 0:55:18]} 29... Kf6 {[%clk
0:38:25]} 30. h4 {[%clk 0:51:05]} 30... Rxg7 {[%clk 0:38:15]} 31. Rxg7 {[%clk
0:51:23]} 31... Kxg7 {[%clk 0:38:43]} 32. Rh2 {[%clk 0:50:57]} 32... Bc7 {[%clk
0:39:05]} 33. Rh3 {[%clk 0:51:20]} 33... Kh6 {[%clk 0:39:23]} 34. h5 {[%clk
0:51:38]} 34... a5 {[%clk 0:39:48]} 35. Kb2 {[%clk 0:52:02]} 35... Bd6 {[%clk
0:40:03]} 36. Kc3 {[%clk 0:52:14]} 36... Be5+ {[%clk 0:40:24]} 37. Kc2 {[%clk
0:52:41]} 37... a4 {[%clk 0:40:48]} 38. g4 {[%clk 0:53:08]} 38... fxg4 {[%clk
0:41:13]} 39. Ra3 {[%clk 0:53:36]} 39... Bb3+ {[%clk 0:41:36]} 40. Kd2 {[%clk
0:54:03]} 40... Kxh5 {[%clk 0:41:56]} 41. Ke3 {[%clk 0:54:30]} 41... Kh4 {[%clk
0:42:17]} 42. Kf2 {[%clk 0:54:58]} 42... Bd4+ {[%clk 0:42:39]} 43. Kg2 {[%clk
0:55:26]} 43... g3 {[%clk 0:43:02]} 44. Kf1 {[%clk 0:55:53]} 44... Bc4+ {[%clk
0:43:28]} 45. Ke1 {[%clk 0:56:19]} 45... g2 {[%clk 0:43:49]} 46. Kd2 {[%clk
0:56:34]} 46... g1=Q {[%clk 0:43:50]} 47. Kc2 {[%clk 0:57:02]} 47... Qf2+ {[%clk
0:44:12]} 48. Kd1 {[%clk 0:57:28]} 48... Bb3+ {[%clk 0:44:20]} 49. Rxb3 {[%clk
0:57:53]} 49... axb3 {[%clk 0:44:45]} 50. Kc1 {[%clk 0:58:20]} 50... Qc2# {[%clk
0:45:09]} 0-1

[Variant "Standard"]
[Site "Europe Echecs"]

[Event "Championnat du monde jeunes U10"]
[Date "2024.11.24"]
[White "Zhou, Guoyu"]
[Black "Zhauynbay, Alimzhan"]
[WhiteElo "1809"]
[BlackElo "1953"]
[Round "9.14"]
[Result "0-1"]
[TimeControl "5400+30"]

1. d4 {[%clk 1:30:57]} 1... Nf6 {[%clk 1:30:53]} 2. c4 {[%clk 1:31:15]} 2... g6
{[%clk 1:31:15]} 3. Nc3 {[%clk 1:31:33]} 3... Bg7 {[%clk 1:31:39]} 4. e4 {[%clk
1:31:50]} 4... d6 {[%clk 1:32:05]} 5. f3 {[%clk 1:32:09]} 5... O-O {[%clk
1:31:49]} 6. Be3 {[%clk 1:32:26]} 6... a6 {[%clk 1:32:10]} 7. Qd2 {[%clk
1:32:13]} 7... Nbd7 {[%clk 1:32:03]} 8. O-O-O {[%clk 1:28:52]} 8... b5 {[%clk
1:31:34]} 9. cxb5 {[%clk 1:26:02]} 9... axb5 {[%clk 1:32:00]} 10. Bxb5 {[%clk
1:24:09]} 10... Nb6 {[%clk 1:30:41]} 11. g4 {[%clk 1:19:15]} 11... Bd7 {[%clk
1:27:54]} 12. Bd3 {[%clk 1:10:57]} 12... Qc8 {[%clk 1:21:15]} 13. Nge2 {[%clk
1:04:28]} 13... c5 {[%clk 1:18:29]} 14. h4 {[%clk 0:45:07]} 14... cxd4 {[%clk
1:17:42]} 15. Bxd4 {[%clk 0:45:17]} 15... Nc4 {[%clk 1:13:24]} 16. Bxc4 {[%clk
0:42:44]} 16... Qxc4 {[%clk 1:13:43]} 17. Qd3 {[%clk 0:38:51]} 17... Bb5 {[%clk
1:11:24]} 18. Qxc4 {[%clk 0:38:51]} 18... Bxc4 {[%clk 1:11:52]} 19. a3 {[%clk
0:35:56]} 19... Nd7 {[%clk 1:06:39]} 20. Bxg7 {[%clk 0:35:00]} 20... Kxg7 {[%clk
1:07:03]} 21. Nd4 {[%clk 0:34:16]} 21... Ne5 {[%clk 1:06:04]} 22. Kc2 {[%clk
0:31:39]} 22... Be6 {[%clk 0:57:17]} 23. Rh2 {[%clk 0:28:14]} 23... Nc4 {[%clk
0:54:01]} 24. Kc1 {[%clk 0:25:01]} 24... Rfc8 {[%clk 0:53:15]} 25. Nxe6+ {[%clk
0:07:25]} 25... fxe6 {[%clk 0:53:15]} 26. a4 {[%clk 0:07:28]} 26... Ne5 {[%clk
0:52:59]} 27. Rc2 {[%clk 0:04:38]} 27... Nxf3 {[%clk 0:52:56]} 28. b4 {[%clk
0:04:43]} 28... Rc4 {[%clk 0:52:54]} 29. b5 {[%clk 0:01:59]} 29... Rac8 {[%clk
0:45:02]} 30. Kb2 {[%clk 0:01:22]} 30... e5 {[%clk 0:44:28]} 31. Rdc1 {[%clk
0:01:03]} 31... Nd4 {[%clk 0:44:38]} 32. Rf2 {[%clk 0:00:44]} 32... Rb4+ {[%clk
0:42:06]} 33. Ka2 {[%clk 0:00:52]} 33... Nxb5 {[%clk 0:42:01]} 34. Rb2 {[%clk
0:00:34]} 34... Nxc3+ {[%clk 0:42:17]} 35. Rxc3 {[%clk 0:00:54]} 35... Rxa4+
{[%clk 0:42:41]} 36. Ra3 {[%clk 0:01:10]} 36... Rca8 {[%clk 0:42:12]} 37. Rxa4
{[%clk 0:01:06]} 37... Rxa4+ 38. Kb1 {[%clk 0:00:52]} 38... Rxe4 {[%clk
0:43:08]} 39. Rg2 {[%clk 0:00:47]} 39... Kf6 {[%clk 0:42:43]} 40. Kc2 {[%clk
0:01:05]} 40... Rf4 {[%clk 0:42:43]} 41. Kd3 {[%clk 0:01:07]} 41... Ke6 {[%clk
0:42:57]} 42. Ke3 {[%clk 0:00:42]} 42... d5 {[%clk 0:43:21]} 43. Rg1 {[%clk
0:00:40]} 43... d4+ {[%clk 0:43:47]} 44. Kd3 {[%clk 0:00:47]} 44... Kd5 {[%clk
0:44:10]} 0-1

[Variant "Standard"]
[Site "Europe Echecs"]